bitfinex-derivatives/quotes_BTCF0:USTF0_20260111
["timestamp","ask_amount","ask_price","bid_price","bid_amount"]
[1768094008630,0.02667066,90688.0,90670.0,0.00972699]
[1768094008819,0.02667066,90687.0,90670.0,0.00972699]
[1768094009018,0.09384,90689.0,90670.0,0.00972699]
[1768094009218,0.02667069,90688.0,90674.0,0.011042]
[1768094009427,0.02667069,90687.0,90674.0,0.011042]
[1768094009626,0.09384,90689.0,90674.0,0.011042]
[1768094009827,0.02667003,90688.0,90674.0,0.011042]
[1768094010127,0.02667003,90687.0,90674.0,0.011042]
[1768094010330,0.02882,90688.0,90674.0,0.011042]
[1768094010615,0.02666949,90687.0,90674.0,0.011042]
[1768094010820,0.02882,90688.0,90674.0,0.011042]
[1768094011027,0.02666949,90687.0,90674.0,0.011042]
[1768094011226,0.02882,90688.0,90674.0,0.011042]
[1768094011428,0.02666944,90687.0,90674.0,0.011042]
[1768094011626,0.02882,90688.0,90674.0,0.011042]
[1768094011829,0.02666898,90687.0,90674.0,0.011042]
[1768094012028,0.02882,90688.0,90674.0,0.011042]
[1768094012232,0.02666898,90687.0,90674.0,0.011042]
[1768094012531,0.02882,90688.0,90674.0,0.011042]
[1768094012732,0.0266685,90687.0,90674.0,0.011042]
[1768094012933,0.02882,90688.0,90674.0,0.011042]
[1768094013232,0.02882,90688.0,90670.0,0.02076999]
[1768094019238,0.039861,90688.0,90670.0,0.00972699]
[1768094019738,0.02882,90688.0,90670.0,0.00972699]
[1768094021341,0.03875962,90688.0,90670.0,0.00972699]
[1768094024644,0.04830848,90688.0,90669.0,0.02092222]
[1768094026844,0.04830848,90688.0,90671.0,0.011043]
[1768094031550,0.00993962,90687.0,90671.0,0.011043]
[1768094032248,0.02666079,90686.0,90671.0,0.011043]
[1768094032545,0.02666079,90685.0,90671.0,0.011043]
[1768094032843,0.02666079,90684.0,90671.0,0.011043]
[1768094033052,0.02666079,90683.0,90671.0,0.011043]
[1768094033251,0.02666079,90682.0,90671.0,0.011043]
[1768094033444,0.02666079,90681.0,90671.0,0.011043]
[1768094033645,0.00993962,90687.0,90671.0,0.011043]
[1768094033847,0.02666249,90686.0,90671.0,0.011043]
[1768094034046,0.02666249,90685.0,90671.0,0.011043]
[1768094034248,0.02666249,90684.0,90671.0,0.011043]
[1768094034448,0.02666249,90683.0,90671.0,0.011043]
[1768094034751,0.02666249,90682.0,90671.0,0.011043]
[1768094035052,0.02666249,90681.0,90671.0,0.011043]
[1768094035252,0.00993962,90687.0,90671.0,0.011043]
[1768094035448,0.02666497,90686.0,90671.0,0.011043]
[1768094035642,0.02666497,90685.0,90671.0,0.011043]
[1768094035854,0.02666497,90684.0,90671.0,0.011043]
[1768094036044,0.02666497,90683.0,90670.0,0.011043]
[1768094036239,0.02666497,90682.0,90672.0,0.011043]
[1768094036443,0.02666497,90681.0,90672.0,0.011043]
[1768094036644,0.00993962,90687.0,90672.0,0.011043]
[1768094036944,0.02666686,90686.0,90672.0,0.011043]
[1768094037144,0.02666686,90685.0,90672.0,0.011043]
[1768094037345,0.02666686,90684.0,90672.0,0.011043]
[1768094037553,0.02666686,90683.0,90672.0,0.011043]
[1768094037753,0.02666686,90682.0,90672.0,0.011043]
[1768094037953,0.02666686,90681.0,90672.0,0.011043]
[1768094038252,0.02666686,90680.0,90669.0,0.00987922]
[1768094038453,0.00993962,90687.0,90669.0,0.00987922]
[1768094038654,0.02667081,90686.0,90669.0,0.00987922]
[1768094038952,0.02667081,90685.0,90669.0,0.00987922]
[1768094039153,0.02667081,90684.0,90671.0,0.011043]
[1768094039352,0.00993962,90687.0,90671.0,0.011043]
[1768094039353,0.02667081,90683.0,90671.0,0.011043]
[1768094039651,0.02667081,90682.0,90671.0,0.011043]
[1768094039852,0.02667081,90681.0,90671.0,0.011043]
[1768094040053,0.00993962,90687.0,90671.0,0.011043]
[1768094040054,0.02667081,90680.0,90671.0,0.011043]
[1768094040352,0.00993962,90687.0,90674.0,0.011042]
[1768094040553,0.02667106,90686.0,90674.0,0.011042]
[1768094040755,0.02667106,90685.0,90674.0,0.011042]
[1768094040956,0.02667106,90684.0,90674.0,0.011042]
[1768094041150,0.02667106,90683.0,90674.0,0.011042]
[1768094041350,0.01961954,90687.0,90674.0,0.011042]
[1768094041351,0.02667106,90682.0,90674.0,0.011042]
[1768094041550,0.02667106,90681.0,90674.0,0.011042]
[1768094041849,0.02667106,90680.0,90671.0,0.011043]
[1768094042049,0.00930429,90686.0,90667.0,0.00989084]
[1768094044154,0.00930429,90686.0,90675.0,0.011042]
[1768094048757,0.00930429,90686.0,90677.0,0.011042]
[1768094049259,0.00930429,90686.0,90674.0,0.011042]
[1768094050259,0.00930429,90686.0,90667.0,0.00989084]
[1768094050558,0.00930429,90686.0,90674.0,0.011042]
[1768094051359,0.00930429,90686.0,90671.0,0.011043]
[1768094056160,0.00930429,90686.0,90674.0,0.011042]
[1768094056361,0.00930429,90686.0,90676.0,0.011042]
[1768094057764,0.00930429,90686.0,90667.0,0.00989084]
[1768094057961,0.00930429,90686.0,90673.0,0.011042]
[1768094058864,0.00930429,90686.0,90667.0,0.00989084]
[1768094061167,0.00930429,90686.0,90673.0,0.011042]
[1768094061365,0.00930429,90686.0,90675.0,0.011042]
[1768094062365,0.00930429,90686.0,90667.0,0.00989084]
[1768094063271,0.00930429,90686.0,90675.0,0.011042]
[1768094063469,0.00930429,90686.0,90677.0,0.011042]
[1768094064273,0.00930429,90686.0,90667.0,0.00989084]
[1768094065172,0.00930429,90686.0,90676.0,0.011042]
[1768094068370,0.00930429,90686.0,90673.0,0.011042]
[1768094068566,0.03897,90685.0,90673.0,0.011042]
[1768094068871,0.03897,90685.0,90675.0,0.011042]
[1768094070674,0.03897,90685.0,90671.0,0.011043]
[1768094070863,0.03897,90685.0,90674.0,0.011042]
[1768094072872,0.03897,90685.0,90667.0,0.00989084]
[1768094072873,0.03897,90685.0,90671.0,0.011043]
[1768094073071,0.03897,90685.0,90674.0,0.011042]
[1768094082278,0.02657133,90684.0,90674.0,0.011042]
[1768094082479,0.02657133,90683.0,90674.0,0.011042]
[1768094082679,0.02657133,90682.0,90674.0,0.011042]
[1768094082877,0.03897,90685.0,90674.0,0.011042]
[1768094082878,0.02657133,90681.0,90674.0,0.011042]
[1768094083081,0.02657133,90680.0,90674.0,0.011042]
[1768094083271,0.03897,90685.0,90674.0,0.011042]
[1768094083471,0.02657133,90684.0,90674.0,0.011042]
[1768094083672,0.02657133,90683.0,90674.0,0.011042]
[1768094083973,0.02657133,90682.0,90674.0,0.011042]
[1768094084172,0.02657133,90681.0,90674.0,0.011042]
[1768094084472,0.02657133,90680.0,90674.0,0.011042]
[1768094084772,0.03897,90685.0,90674.0,0.011042]
[1768094085071,0.02657133,90684.0,90674.0,0.011042]
[1768094085268,0.02657133,90683.0,90674.0,0.011042]
[1768094085469,0.02657133,90682.0,90674.0,0.011042]
[1768094085669,0.02657133,90681.0,90674.0,0.011042]
[1768094085879,0.02657133,90680.0,90674.0,0.011042]
[1768094086080,0.03897,90685.0,90674.0,0.011042]
[1768094086380,0.02657134,90684.0,90674.0,0.011042]
[1768094086580,0.02657134,90683.0,90674.0,0.011042]
[1768094086779,0.02657134,90682.0,90674.0,0.011042]
[1768094086979,0.02657134,90681.0,90674.0,0.011042]
[1768094087180,0.02657134,90680.0,90674.0,0.011042]
[1768094087381,0.03897,90685.0,90674.0,0.011042]
[1768094087581,0.02657135,90684.0,90674.0,0.011042]
[1768094087781,0.02657135,90683.0,90674.0,0.011042]
[1768094087982,0.02657135,90682.0,90674.0,0.011042]
[1768094088182,0.02657135,90681.0,90674.0,0.011042]
[1768094088481,0.02657135,90680.0,90674.0,0.011042]
[1768094088682,0.03897,90685.0,90674.0,0.011042]
[1768094088872,0.02657135,90684.0,90674.0,0.011042]
[1768094089069,0.02657135,90683.0,90674.0,0.011042]
[1768094089280,0.02657135,90682.0,90674.0,0.011042]
[1768094089479,0.02657135,90681.0,90674.0,0.011042]
[1768094089679,0.02657135,90680.0,90674.0,0.011042]
[1768094089981,0.03897,90685.0,90674.0,0.011042]
[1768094090175,0.02657134,90684.0,90674.0,0.011042]
[1768094090475,0.02657134,90683.0,90674.0,0.011042]
[1768094090676,0.02657134,90682.0,90674.0,0.011042]
[1768094090886,0.02657134,90681.0,90674.0,0.011042]
[1768094091182,0.02657134,90680.0,90674.0,0.011042]
[1768094091382,0.03897,90685.0,90674.0,0.011042]
[1768094091584,0.02657134,90684.0,90671.0,0.011043]
[1768094091881,0.02657134,90683.0,90671.0,0.011043]
[1768094092088,0.02657134,90682.0,90671.0,0.011043]
[1768094092276,0.03897,90685.0,90671.0,0.011043]
[1768094092477,0.03897,90685.0,90670.0,0.15206004]
[1768094092478,0.03897,90685.0,90673.0,0.011042]
[1768094093387,0.04863981,90685.0,90673.0,0.011042]
[1768094104386,0.04863981,90685.0,90675.0,0.011042]
[1768094104890,0.04863981,90685.0,90671.0,0.011043]
[1768094105191,0.04863981,90685.0,90673.0,0.011042]
[1768094106694,0.00966981,90685.0,90673.0,0.011042]
[1768094107692,0.00966981,90685.0,90677.0,0.011042]
[1768094109297,0.02712,90684.0,90677.0,0.011042]
[1768094111603,0.02712,90684.0,90676.0,0.011042]
[1768094116195,0.10376628,90693.0,90671.0,0.0096061]
[1768094116392,0.10376628,90693.0,90686.0,0.011041]
[1768094116599,0.01654719,90725.0,90680.0,0.15206004]
[1768094116600,0.00954184,90704.0,90693.0,0.01104]
[1768094116896,4.1e-07,90705.0,90700.0,0.011039]
[1768094117192,4.1e-07,90705.0,90699.0,0.011039]
[1768094119895,4.1e-07,90705.0,90691.0,0.09384]
[1768094119896,4.1e-07,90705.0,90695.0,0.01104]
[1768094120800,4.1e-07,90705.0,90697.0,0.011039]
[1768094123499,4.1e-07,90705.0,90693.0,0.01104]
[1768094125899,4.1e-07,90705.0,90691.0,0.09384]
[1768094128806,0.02627999,90704.0,90691.0,0.09384]
[1768094129006,0.02627999,90703.0,90691.0,0.09384]
[1768094129207,4.1e-07,90705.0,90691.0,0.09384]
[1768094129508,0.0262795,90704.0,90691.0,0.09384]
[1768094129696,0.0262795,90703.0,90691.0,0.09384]
[1768094130010,4.1e-07,90705.0,90691.0,0.09384]
[1768094130305,0.0262795,90704.0,90691.0,0.09384]
[1768094130501,0.0262795,90703.0,90691.0,0.09384]
[1768094130701,4.1e-07,90705.0,90691.0,0.09384]
[1768094130900,0.02627956,90704.0,90691.0,0.09384]
[1768094131097,0.02627956,90703.0,90691.0,0.09384]
[1768094131397,4.1e-07,90705.0,90691.0,0.09384]
[1768094131600,0.02627968,90704.0,90691.0,0.09384]
[1768094131906,0.02627968,90703.0,90691.0,0.09384]
[1768094132205,4.1e-07,90705.0,90691.0,0.09384]
[1768094139415,4.1e-07,90705.0,90691.0,0.10291233]
[1768094139606,4.1e-07,90705.0,90691.0,0.11193208]
[1768094143133,4.1e-07,90705.0,90692.0,0.01809208]
[1768094149035,4.1e-07,90705.0,90693.0,0.00907233]
[1768094149736,4.1e-07,90705.0,90693.0,0.01809208]
[1768094152541,4.1e-07,90705.0,90691.0,0.09384]
[1768094152542,4.1e-07,90705.0,90694.0,0.01809208]
[1768094152731,4.1e-07,90705.0,90695.0,0.00907233]
[1768094154836,4.1e-07,90705.0,90696.0,0.00989325]
[1768094155042,4.1e-07,90705.0,90697.0,0.00973676]
[1768094155243,4.1e-07,90705.0,90698.0,0.00989325]
[1768094155437,4.1e-07,90705.0,90699.0,0.00973676]
[1768094161154,4.1e-07,90705.0,90699.0,0.01963001]
[1768094163250,4.1e-07,90705.0,90699.0,0.00973676]
[1768094163448,0.01103941,90705.0,90699.0,0.00973676]
[1768094165354,4.1e-07,90705.0,90699.0,0.00973676]
[1768094172258,0.02614163,90704.0,90699.0,0.00973676]
[1768094172553,0.02614163,90703.0,90699.0,0.00973676]
[1768094172754,0.02614163,90702.0,90699.0,0.00973676]
[1768094172944,0.02614163,90701.0,90699.0,0.00973676]
[1768094173145,4.1e-07,90705.0,90699.0,0.00973676]
[1768094173350,0.02614167,90704.0,90699.0,0.00973676]
[1768094173541,0.02614167,90703.0,90699.0,0.00973676]
[1768094173745,0.02614167,90702.0,90699.0,0.00973676]
[1768094174043,0.02614167,90701.0,90699.0,0.00973676]
[1768094174242,4.1e-07,90705.0,90699.0,0.00973676]
[1768094174441,0.02614173,90704.0,90699.0,0.00973676]
[1768094174654,0.02614173,90703.0,90699.0,0.00973676]
[1768094174853,0.02614173,90702.0,90699.0,0.00973676]
[1768094175055,0.02614173,90701.0,90691.0,0.01889078]
[1768094175255,4.1e-07,90705.0,90693.0,0.01889078]
[1768094175456,0.02614182,90704.0,90694.0,0.00952128]
[1768094175658,0.02614182,90703.0,90694.0,0.01889078]
[1768094175859,0.02614182,90702.0,90690.0,0.0093695]
[1768094176153,0.02614182,90701.0,90690.0,0.0093695]
[1768094176358,4.1e-07,90705.0,90690.0,0.0093695]
[1768094176547,0.0261419,90704.0,90690.0,0.0093695]
[1768094176748,0.0261419,90703.0,90690.0,0.0093695]
[1768094176957,0.0261419,90702.0,90690.0,0.01889078]
[1768094177254,0.0261419,90701.0,90690.0,0.01889078]
[1768094177456,4.1e-07,90705.0,90690.0,0.01889078]
[1768094177642,0.0261419,90704.0,90690.0,0.01889078]
[1768094177842,0.0261419,90703.0,90690.0,0.01889078]
[1768094178058,0.0261419,90702.0,90690.0,0.01889078]
[1768094178356,0.0261419,90701.0,90690.0,0.01889078]
[1768094178555,4.1e-07,90705.0,90690.0,0.01889078]
[1768094178756,0.02614188,90704.0,90690.0,0.01889078]
[1768094178957,0.02614188,90703.0,90690.0,0.01889078]
[1768094179158,0.02614188,90702.0,90690.0,0.01889078]
[1768094179360,0.02614188,90701.0,90690.0,0.01889078]
[1768094179560,4.1e-07,90705.0,90690.0,0.01889078]
[1768094179755,0.02614188,90704.0,90690.0,0.01889078]
[1768094179955,0.02614188,90703.0,90690.0,0.01889078]
[1768094180155,0.02614188,90702.0,90690.0,0.01889078]
[1768094180356,0.02614188,90701.0,90690.0,0.01889078]
[1768094180556,4.1e-07,90705.0,90691.0,0.01889078]
[1768094180759,0.02614187,90704.0,90691.0,0.01889078]
[1768094181055,0.02614187,90703.0,90691.0,0.01889078]
[1768094181255,0.02614187,90702.0,90691.0,0.01889078]
[1768094181453,0.02614187,90701.0,90691.0,0.01889078]
[1768094181652,4.1e-07,90705.0,90691.0,0.01889078]
[1768094181853,0.02614187,90704.0,90691.0,0.01889078]
[1768094182054,0.02614187,90703.0,90691.0,0.01889078]
[1768094182253,4.1e-07,90705.0,90691.0,0.01889078]
[1768094185263,4.1e-07,90705.0,90691.0,0.02993078]
[1768094185462,4.1e-07,90705.0,90691.0,0.01889078]
[1768094186163,4.1e-07,90705.0,90692.0,0.01889078]
[1768094186964,4.1e-07,90705.0,90693.0,0.00952128]
[1768094199177,4.1e-07,90705.0,90689.0,0.0091622]
[1768094203570,4.1e-07,90705.0,90689.0,0.0182343]
[1768094208284,4.1e-07,90705.0,90690.0,0.01104]
[1768094211682,4.1e-07,90705.0,90689.0,0.0182343]
[1768094212284,0.02641526,90704.0,90689.0,0.0182343]
[1768094212485,0.02641526,90703.0,90689.0,0.0182343]
[1768094212685,0.02641526,90702.0,90689.0,0.0182343]
[1768094212894,0.02641526,90701.0,90689.0,0.0182343]
[1768094213095,0.02641526,90700.0,90689.0,0.0182343]
[1768094213297,4.1e-07,90705.0,90689.0,0.0182343]
[1768094213492,0.0264152,90704.0,90689.0,0.0182343]
[1768094213691,0.0264152,90703.0,90689.0,0.0182343]
[1768094213990,0.0264152,90702.0,90689.0,0.0182343]
[1768094214191,0.0264152,90701.0,90689.0,0.0182343]
[1768094214383,0.0264152,90700.0,90689.0,0.0182343]
[1768094214586,4.1e-07,90705.0,90689.0,0.0182343]
[1768094214784,0.02641518,90704.0,90689.0,0.0182343]
[1768094214988,0.02641518,90703.0,90689.0,0.0182343]
[1768094215196,0.02641518,90702.0,90689.0,0.0182343]
[1768094215397,0.02641518,90701.0,90689.0,0.0182343]
[1768094215597,0.02641518,90700.0,90689.0,0.0182343]
[1768094215798,4.1e-07,90705.0,90689.0,0.0182343]
[1768094215989,0.02641517,90704.0,90689.0,0.0182343]
[1768094216191,0.02641517,90703.0,90689.0,0.0182343]
[1768094216499,0.02641517,90702.0,90689.0,0.0182343]
[1768094216799,0.02641517,90701.0,90689.0,0.0182343]
[1768094216989,0.02641517,90700.0,90689.0,0.0182343]
[1768094217186,4.1e-07,90705.0,90689.0,0.0090721]
[1768094217401,0.02641515,90704.0,90689.0,0.0090721]
[1768094217697,0.02641515,90703.0,90689.0,0.0090721]
[1768094217897,0.02641515,90702.0,90690.0,0.01104]
[1768094218095,0.02641515,90701.0,90690.0,0.01104]
[1768094218296,0.02641515,90700.0,90690.0,0.01104]
[1768094218497,4.1e-07,90705.0,90690.0,0.01104]
[1768094218697,0.02641515,90704.0,90690.0,0.01104]
[1768094218896,0.02641515,90703.0,90690.0,0.01104]
[1768094219196,0.02641515,90702.0,90690.0,0.01104]
[1768094219397,0.02641515,90701.0,90690.0,0.01104]
[1768094219599,0.02641515,90700.0,90690.0,0.01104]
[1768094219800,4.1e-07,90705.0,90690.0,0.01104]
[1768094220100,0.02641515,90704.0,90691.0,0.01893308]
[1768094220300,0.02641515,90703.0,90691.0,0.01893308]
[1768094220499,0.02641515,90702.0,90691.0,0.01893308]
[1768094220698,0.02641515,90701.0,90691.0,0.01893308]
[1768094220901,0.02641515,90700.0,90691.0,0.01893308]
[1768094221101,4.1e-07,90705.0,90691.0,0.01893308]
[1768094221400,0.02641514,90704.0,90692.0,0.01104]
[1768094221602,0.02641514,90703.0,90692.0,0.01104]
[1768094221800,0.02641514,90702.0,90692.0,0.01104]
[1768094222002,0.02641514,90701.0,90692.0,0.01104]
[1768094222203,4.1e-07,90705.0,90692.0,0.01104]
[1768094227003,0.02943,90704.0,90692.0,0.01104]
[1768094227302,0.02943,90704.0,90691.0,0.00984311]
[1768094227704,0.02943,90704.0,90691.0,0.02088311]
[1768094231006,0.02943,90704.0,90691.0,0.00984311]
[1768094235411,0.02943,90704.0,90677.0,0.01912515]
[1768094235412,0.00901911,90698.0,90677.0,0.01912515]
[1768094235614,0.00901911,90698.0,90682.0,0.011041]
[1768094236406,0.00901911,90698.0,90682.0,0.02027461]
[1768094240918,0.00901911,90698.0,90683.0,0.00923361]
[1768094242516,0.01104,90695.0,90681.0,0.09384]
[1768094242715,0.02005911,90695.0,90681.0,0.09384]
[1768094242911,0.00901911,90695.0,90681.0,0.09384]
[1768094243416,0.02005811,90698.0,90681.0,0.09384]
[1768094245717,0.01104,90696.0,90681.0,0.09384]
[1768094246818,0.01104,90696.0,90681.0,0.10307361]
[1768094247419,0.00901911,90695.0,90675.0,0.02093354]
[1768094247718,0.00901911,90695.0,90676.0,0.00923361]
[1768094254522,0.01104,90694.0,90676.0,0.00923361]
[1768094262026,0.02095794,90694.0,90676.0,0.00923361]
[1768094262331,0.02650385,90693.0,90676.0,0.00923361]
[1768094262531,0.02650385,90692.0,90676.0,0.00923361]
[1768094262734,0.02650385,90691.0,90676.0,0.00923361]
[1768094263032,0.02650385,90690.0,90676.0,0.00923361]
[1768094263222,0.02650385,90689.0,90676.0,0.00923361]
[1768094263422,0.02095794,90694.0,90676.0,0.00923361]
[1768094263631,0.02638014,90693.0,90676.0,0.00923361]
[1768094263930,0.02638014,90692.0,90676.0,0.00923361]
[1768094264126,0.02638014,90691.0,90676.0,0.00923361]
[1768094264332,0.02638014,90690.0,90676.0,0.00923361]
[1768094264526,0.02638014,90689.0,90676.0,0.00923361]
[1768094264729,0.02095794,90694.0,90676.0,0.00923361]
[1768094265028,0.02638277,90693.0,90676.0,0.00923361]
[1768094265227,0.02638277,90692.0,90676.0,0.00923361]
[1768094265530,0.02638277,90691.0,90676.0,0.00923361]
[1768094265734,0.02638277,90690.0,90676.0,0.00923361]
[1768094265931,0.02638277,90689.0,90676.0,0.00923361]
[1768094266231,0.02095794,90694.0,90676.0,0.00923361]
[1768094266433,0.02638659,90693.0,90676.0,0.00923361]
[1768094266633,0.02638659,90692.0,90676.0,0.00923361]
[1768094266835,0.02638659,90691.0,90676.0,0.00923361]
[1768094267037,0.02638659,90690.0,90676.0,0.00923361]
[1768094267237,0.02638659,90689.0,90676.0,0.00923361]
[1768094267428,0.02095794,90694.0,90676.0,0.00923361]
[1768094267630,0.02638711,90693.0,90676.0,0.00923361]
[1768094267929,0.02638711,90692.0,90676.0,0.00923361]
[1768094268228,0.02638711,90691.0,90676.0,0.00923361]
[1768094268429,0.02638711,90690.0,90676.0,0.00923361]
[1768094268630,0.02638711,90689.0,90676.0,0.00923361]
[1768094268830,0.02095794,90694.0,90676.0,0.00923361]
[1768094269031,0.02638774,90693.0,90676.0,0.00923361]
[1768094269230,0.02638774,90692.0,90676.0,0.00923361]
[1768094269529,0.02638774,90691.0,90676.0,0.00923361]
[1768094269830,0.02638774,90690.0,90676.0,0.00923361]
[1768094270029,0.02638774,90689.0,90676.0,0.00923361]
[1768094270231,0.02095794,90694.0,90676.0,0.00923361]
[1768094270431,0.02638943,90693.0,90676.0,0.00923361]
[1768094270632,0.02638943,90692.0,90676.0,0.00923361]
[1768094270830,0.02095794,90694.0,90676.0,0.00923361]
[1768094270831,0.02638943,90691.0,90676.0,0.00923361]
[1768094271041,0.02638943,90690.0,90676.0,0.00923361]
[1768094271240,0.02638943,90689.0,90676.0,0.00923361]
[1768094271538,0.02638943,90688.0,90676.0,0.00923361]
[1768094271840,0.02095794,90694.0,90676.0,0.00923361]
[1768094272043,0.02639054,90693.0,90676.0,0.00923361]
[1768094272236,0.02639054,90692.0,90676.0,0.00923361]
[1768094272539,0.02095794,90694.0,90676.0,0.00923361]
[1768094272932,0.00982491,90693.0,90676.0,0.00923361]
[1768094275144,0.00982491,90693.0,90677.0,0.011042]
[1768094276237,0.03542,90692.0,90677.0,0.011042]
[1768094281742,0.03542,90692.0,90676.0,0.00923361]
[1768094282242,0.04524491,90692.0,90676.0,0.00923361]
[1768094286040,0.00937975,90691.0,90676.0,0.00923361]
[1768094296448,0.00937975,90691.0,90676.0,0.02027561]
[1768094296648,0.03542,90692.0,90676.0,0.02027561]
[1768094299051,0.03542,90692.0,90677.0,0.00952467]
[1768094299253,0.03542,90692.0,90678.0,0.011042]
[1768094312266,0.02635203,90691.0,90678.0,0.011042]
[1768094312466,0.02635203,90690.0,90678.0,0.011042]
[1768094312662,0.02635203,90689.0,90678.0,0.011042]
[1768094312863,0.02635203,90688.0,90678.0,0.011042]
[1768094313064,0.02635203,90687.0,90678.0,0.011042]
[1768094313264,0.03542,90692.0,90678.0,0.011042]
[1768094313466,0.02631439,90691.0,90678.0,0.011042]
[1768094313665,0.02631439,90690.0,90678.0,0.011042]
[1768094313968,0.02631439,90689.0,90678.0,0.011042]
[1768094314179,0.02631439,90688.0,90678.0,0.011042]
[1768094314479,0.02631439,90687.0,90678.0,0.011042]
[1768094314779,0.03542,90692.0,90678.0,0.011042]
[1768094314976,0.02631438,90691.0,90677.0,0.00952467]
[1768094315176,0.02631438,90690.0,90677.0,0.00952467]
[1768094315473,0.03542,90692.0,90677.0,0.00952467]
[1768094315474,0.02631438,90689.0,90677.0,0.00952467]
[1768094315674,0.02631438,90688.0,90677.0,0.00952467]
[1768094315875,0.02631438,90687.0,90677.0,0.00952467]
[1768094316080,0.03542,90692.0,90677.0,0.00952467]
[1768094316280,0.02631436,90691.0,90677.0,0.02056667]
[1768094316579,0.02631436,90690.0,90677.0,0.02056667]
[1768094316780,0.02631436,90689.0,90677.0,0.02056667]
[1768094316981,0.02631436,90688.0,90677.0,0.02056667]
[1768094317181,0.03542,90692.0,90677.0,0.02056667]
[1768094317382,0.02619926,90691.0,90677.0,0.02056667]
[1768094317582,0.02619926,90690.0,90677.0,0.02056667]
[1768094317783,0.02619926,90689.0,90677.0,0.02056667]
[1768094317976,0.02619926,90688.0,90677.0,0.02056667]
[1768094318178,0.03542,90692.0,90677.0,0.02056667]
[1768094318383,0.02619928,90691.0,90677.0,0.02056667]
[1768094318584,0.02619928,90690.0,90677.0,0.02056667]
[1768094318775,0.02619928,90689.0,90677.0,0.02056667]
[1768094318975,0.02619928,90688.0,90677.0,0.02056667]
[1768094319176,0.00937975,90694.0,90677.0,0.02056667]
[1768094319467,0.03539851,90693.0,90677.0,0.02056667]
[1768094319670,0.02619929,90692.0,90677.0,0.02056667]
[1768094319873,0.02619929,90691.0,90677.0,0.02056667]
[1768094320074,0.02619929,90690.0,90677.0,0.02056667]
[1768094320270,0.02619929,90689.0,90677.0,0.02056667]
[1768094320476,0.02619929,90688.0,90677.0,0.02056667]
[1768094320684,0.00919922,90693.0,90677.0,0.02056667]
[1768094320985,0.03539851,90692.0,90677.0,0.02056667]
[1768094321186,0.02619929,90691.0,90677.0,0.02056667]
[1768094321375,0.02619929,90690.0,90677.0,0.02056667]
[1768094321575,0.02619929,90689.0,90677.0,0.02056667]
[1768094321883,0.02619929,90688.0,90677.0,0.02056667]
[1768094322285,0.02491,90689.0,90677.0,0.02056667]
[1768094325595,0.02491,90689.0,90679.0,0.011042]
[1768094337391,0.02491,90689.0,90677.0,0.00952467]
[1768094344902,0.02491,90689.0,90678.0,0.011042]
[1768094348210,0.02491,90689.0,90680.0,0.011042]
[1768094348398,0.011037,90717.0,90679.0,0.15204443]
[1768094348399,0.0097219,90695.0,90682.0,0.011041]
[1768094350306,0.0097219,90695.0,90684.0,0.011041]
[1768094350500,0.0097219,90699.0,90684.0,0.011041]
[1768094350703,0.02623875,90696.0,90684.0,0.011041]
[1768094350901,0.02623875,90695.0,90684.0,0.011041]
[1768094351100,0.0097219,90699.0,90684.0,0.011041]
[1768094351301,0.02623874,90696.0,90684.0,0.011041]
[1768094351504,0.02623874,90695.0,90684.0,0.011041]
[1768094351805,0.0097219,90699.0,90684.0,0.011041]
[1768094352011,0.02623865,90696.0,90684.0,0.011041]
[1768094352195,0.02623865,90695.0,90684.0,0.011041]
[1768094352506,0.02623856,90694.0,90684.0,0.011041]
[1768094352806,0.02623856,90693.0,90684.0,0.011041]
[1768094353007,0.02623856,90692.0,90684.0,0.011041]
[1768094353306,0.02623856,90691.0,90684.0,0.011041]
[1768094353497,5.6e-07,90690.0,90684.0,0.011041]
[1768094353698,0.02814,90698.0,90684.0,0.011041]
[1768094358310,0.1035619,90697.0,90684.0,0.011041]
[1768094359010,0.1035619,90697.0,90682.0,0.011041]
[1768094359212,0.0097219,90696.0,90684.0,0.011041]
[1768094362210,0.0097219,90696.0,90680.0,0.15204443]
[1768094362410,0.0097219,90696.0,90683.0,0.011041]
[1768094364912,0.0097219,90696.0,90685.0,0.011041]
[1768094367419,0.0097219,90696.0,90680.0,0.16147989]
[1768094367614,0.0097219,90696.0,90683.0,0.011041]
[1768094369222,0.0097219,90696.0,90680.0,0.16147989]
[1768094369520,0.0097219,90696.0,90683.0,0.011041]
[1768094370022,0.0097219,90696.0,90681.0,0.011041]
[1768094370222,0.0097219,90696.0,90680.0,0.16147989]
[1768094370223,0.0097219,90696.0,90680.0,0.17252189]
[1768094371234,0.0097219,90696.0,90682.0,0.011041]
[1768094373532,0.02814,90698.0,90682.0,0.011041]
[1768094373731,0.02608405,90697.0,90682.0,0.011041]
[1768094373931,0.02608405,90696.0,90682.0,0.011041]
[1768094374132,0.02814,90698.0,90682.0,0.011041]
[1768094374334,0.02608405,90697.0,90682.0,0.011041]
[1768094374534,0.02608405,90696.0,90682.0,0.011041]
[1768094374729,0.03787389,90698.0,90682.0,0.011041]
[1768094374929,0.02608413,90697.0,90682.0,0.011041]
[1768094375130,0.02608413,90696.0,90682.0,0.011041]
[1768094375331,0.03787389,90698.0,90684.0,0.011041]
[1768094375532,0.02608423,90697.0,90684.0,0.011041]
[1768094375727,2.3e-07,90696.0,90692.0,0.01104]
[1768094375927,0.09384,90701.0,90692.0,0.01104]
[1768094376532,0.09384,90701.0,90688.0,0.00970403]
[1768094376533,0.011038,90712.0,90695.0,0.00970403]
[1768094376738,0.09384,90707.0,90695.0,0.00970403]
[1768094382733,0.09384,90707.0,90690.0,0.16308443]
[1768094382933,0.10357389,90707.0,90690.0,0.16308443]
[1768094383235,0.10357389,90707.0,90692.0,0.01104]
[1768094389047,0.00973389,90706.0,90692.0,0.01104]
[1768094392148,0.00973389,90706.0,90694.0,0.01104]
[1768094393956,0.00973389,90706.0,90691.0,0.01104]
[1768094396742,0.00973389,90706.0,90693.0,0.01104]
[1768094398955,0.00973389,90706.0,90695.0,0.01104]
[1768094401459,0.09384,90707.0,90697.0,0.01104]
[1768094403255,0.02550624,90704.0,90697.0,0.01104]
[1768094403558,0.09384,90707.0,90693.0,0.00900191]
[1768094403759,0.02550656,90704.0,90693.0,0.00900191]
[1768094403960,0.09384,90707.0,90693.0,0.00900191]
[1768094404554,0.09384,90707.0,90693.0,0.02004191]
[1768094404761,0.10289832,90707.0,90693.0,0.02004191]
[1768094405460,0.02551868,90704.0,90693.0,0.02004191]
[1768094405662,0.10289832,90707.0,90693.0,0.02004191]
[1768094405856,0.02551858,90704.0,90693.0,0.02004191]
[1768094406058,0.10289832,90707.0,90693.0,0.02004191]
[1768094406252,0.02551858,90704.0,90693.0,0.02004191]
[1768094406452,0.10289832,90707.0,90693.0,0.02004191]